fUSD/lending_fUSD_20250107
["ID","MTS","AMOUNT","RATE_DAILY","PERIOD"]
[348063004,1736290244100,-971.26,9.278e-05,2]
[348063006,1736290244109,-500.0,9.278e-05,2]
[348063008,1736290244118,-500.0,9.278e-05,2]
[348063010,1736290244128,-500.0,9.278e-05,2]
[348063012,1736290244137,-500.0,9.278e-05,2]
[348063014,1736290244146,-1522.1,9.278e-05,2]
[348063016,1736290244155,-1006.5,9.278e-05,2]
[348063018,1736290244165,-500.0,9.278e-05,2]
[348063020,1736290244174,-4588.54,9.278e-05,2]
[348063022,1736290244183,-500.0,9.278e-05,2]
[348063024,1736290244192,-552.23,9.278e-05,2]
[348063026,1736290244201,-500.0,9.278e-05,2]
[348063028,1736290244210,-500.0,9.278e-05,2]
[348063029,1736290244219,-627.12,9.278e-05,2]
[348063031,1736290244228,-3709.51,9.278e-05,2]
[348063033,1736290244237,-500.0,9.278e-05,2]
[348063035,1736290244246,-500.0,9.278e-05,2]
[348063038,1736290244256,-551.69,9.278e-05,2]
[348063040,1736290244265,-564.59,9.278e-05,2]
[348063042,1736290244274,-274.26516956,9.278e-05,2]
[348063044,1736290244283,-500.0,9.278e-05,2]
[348063046,1736290244292,-500.0,9.278e-05,2]
[348063048,1736290244302,-500.0,9.278e-05,2]
[348063049,1736290244310,-500.0,9.278e-05,2]
[348063052,1736290244320,-500.0,9.278e-05,2]
[348063054,1736290244329,-768.22,9.278e-05,2]
[348063056,1736290244339,-1607.22,9.278e-05,2]
[348063058,1736290244350,-500.0,9.278e-05,2]
[348063059,1736290244359,-520.1,9.278e-05,2]
[348063062,1736290244370,-1834.97,9.278e-05,2]
[348063064,1736290244379,-500.0,9.278e-05,2]
[348063066,1736290244390,-500.0,9.278e-05,2]
[348063067,1736290244399,-1189.26,9.278e-05,2]
[348063070,1736290244408,-578.09,9.278e-05,2]
[348063071,1736290244419,-797.72,9.411e-05,2]
[348063074,1736290244428,-3528.04,9.411e-05,2]
[348063076,1736290244438,-1276.55,9.411e-05,2]
[348063077,1736290244447,-3057.55,9.411e-05,2]
[348063079,1736290244456,-7935.21,9.411e-05,2]
[348063082,1736290244466,-500.0,9.411e-05,2]
[348063084,1736290244475,-920.79,9.411e-05,2]
[348063086,1736290244484,-1588.01,9.411e-05,2]
[348063088,1736290244493,-2769.15,9.411e-05,2]
[348063089,1736290244502,-500.0,9.411e-05,2]
[348063092,1736290244511,-5146.02,9.411e-05,2]
[348063093,1736290244521,-1860.59,9.411e-05,2]
[348063096,1736290244530,-500.0,9.411e-05,2]
[348063098,1736290244540,-2177.16,9.411e-05,2]
[348063100,1736290244549,-1293.55,9.411e-05,2]
[348063101,1736290244559,-4623.61,9.411e-05,2]
[348063103,1736290244568,-2142.04,9.411e-05,2]
[348063106,1736290244577,-1965.94,9.411e-05,2]
[348063107,1736290244587,-2185.97,9.411e-05,2]
[348063110,1736290244596,-561.56722858,9.411e-05,2]
[348063111,1736290244606,-946.04,9.411e-05,2]
[348063113,1736290244615,-3004.29,9.411e-05,2]
[348063115,1736290244624,-500.0,9.411e-05,2]
[348063117,1736290244633,-500.0,9.411e-05,2]
[348063120,1736290244642,-1147.28,9.411e-05,2]
[348063122,1736290244651,-1015.36,9.411e-05,2]
[348063123,1736290244660,-500.0,9.411e-05,2]
[348063126,1736290244669,-1034.35,9.411e-05,2]
[348063128,1736290244680,-564.54,9.411e-05,2]
[348063130,1736290244689,-300.6661881,9.411e-05,2]
[348063132,1736290244698,-2088.64,9.411e-05,2]
[348063133,1736290244708,-500.0,9.454e-05,2]
[348063134,1736290244716,-500.0,9.454e-05,2]
[348063135,1736290244726,-500.0,9.454e-05,2]
[348063136,1736290244735,-505.84,9.454e-05,2]
[348063137,1736290244745,-258.38321149,9.454e-05,2]
[348063138,1736290244755,-500.0,9.454e-05,2]
[348063139,1736290244764,-500.0,9.454e-05,2]
[348063140,1736290244773,-542.87,9.454e-05,2]
[348063141,1736290244783,-500.0,9.454e-05,2]
[348063142,1736290244792,-500.0,9.454e-05,2]
[348063143,1736290244802,-500.0,9.454e-05,2]
[348063144,1736290244811,-500.0,9.454e-05,2]
[348063145,1736290244821,-500.0,9.454e-05,2]
[348063146,1736290244831,-538.95,9.454e-05,2]
[348063147,1736290244840,-500.0,9.454e-05,2]
[348063148,1736290244850,-500.0,9.454e-05,2]
[348063149,1736290244859,-500.0,9.454e-05,2]
[348063150,1736290244869,-500.0,9.454e-05,2]
[348063151,1736290244879,-551.54,9.454e-05,2]
[348063152,1736290244888,-500.0,9.454e-05,2]
[348063153,1736290244898,-500.0,9.454e-05,2]
[348063154,1736290244908,-636.56,9.454e-05,2]
[348063155,1736290244918,-500.0,9.454e-05,2]
[348063156,1736290244927,-627.49,9.454e-05,2]
[348063157,1736290244937,-500.0,9.454e-05,2]
[348063158,1736290244946,-717.74,9.454e-05,2]
[348063159,1736290244956,-360.70652303,9.454e-05,2]
[348063160,1736290245353,-139.29347697,9.454e-05,2]
[348063161,1736290245363,-500.0,9.454e-05,2]
[348063162,1736290245373,-370.20652303,9.454e-05,2]
[348063163,1736290245397,-129.79347697,9.454e-05,2]
[348063164,1736290245407,-500.0,9.454e-05,2]
[348063165,1736290245417,-500.0,9.454e-05,2]
[348063166,1736290245427,-112.04398104,9.454e-05,2]
[348063167,1736290245439,-387.95601896,9.454e-05,2]
[348063168,1736290245448,-500.0,9.455e-05,2]
[348063169,1736290245458,-500.0,9.455e-05,2]
[348063170,1736290245467,-435.0738419,9.455e-05,2]
[348063171,1736290245479,-64.9261581,9.455e-05,2]
[348063172,1736290245489,-918.23,9.455e-05,2]
[348063173,1736290245498,-730.29,9.455e-05,2]
[348063174,1736290245508,-500.0,9.455e-05,2]
[348063175,1736290245518,-500.0,9.455e-05,2]
[348063176,1736290245527,-500.0,9.455e-05,2]
[348063177,1736290245537,-386.5538419,9.455e-05,2]
[348063178,1736290245549,-113.4461581,9.455e-05,2]
[348063179,1736290245558,-1236.68,9.455e-05,2]
[348063180,1736290245567,-889.86,9.455e-05,2]
[348063181,1736290245576,-540.53,9.455e-05,2]
[348063182,1736290245586,-1169.42,9.455e-05,2]
[348063183,1736290245596,-638.18,9.455e-05,2]
[348063184,1736290245605,-526.57,9.455e-05,2]
[348063185,1736290245615,-621.31,9.455e-05,2]
[348063186,1736290245624,-433.2420419,9.455e-05,2]
[348063192,1736290246242,-537.41,9.004e-05,2]
[348063193,1736290246251,-537.41,9.278e-05,2]
[348063194,1736290246260,-66.7579581,9.455e-05,2]
[348063195,1736290246270,-500.0,9.455e-05,2]
[348063196,1736290246279,-527.28,9.455e-05,2]
[348063197,1736290246288,-953.02,9.455e-05,2]
[348063198,1736290246297,-500.0,9.455e-05,2]
[348063199,1736290246305,-497.6,9.455e-05,2]
[348063200,1736290246315,-500.44,9.455e-05,2]
[348063201,1736290246324,-880.01,9.455e-05,2]
[348063202,1736290246333,-500.0,9.455e-05,2]
[348063203,1736290246345,-500.0,9.455e-05,2]
[348063204,1736290246354,-500.0,9.455e-05,2]
[348063205,1736290246363,-989.14,9.455e-05,2]
[348063206,1736290246373,-619.42,9.455e-05,2]
[348063207,1736290246383,-1041.11,9.455e-05,2]
[348063208,1736290246392,-500.0,9.455e-05,2]
[348063209,1736290246401,-500.0,9.455e-05,2]
[348063210,1736290246410,-500.0,9.455e-05,2]
[348063211,1736290246420,-1191.41,9.455e-05,2]
[348063212,1736290246429,-586.75,9.455e-05,2]
[348063213,1736290246438,-1060.23,9.455e-05,2]
[348063214,1736290246447,-500.0,9.455e-05,2]
[348063215,1736290246457,-500.0,9.455e-05,2]
[348063216,1736290246466,-313.22664498,9.455e-05,2]
[348063217,1736290246491,-347.57335502,9.455e-05,2]
[348063218,1736290246500,-500.0,9.455e-05,2]
[348063219,1736290246509,-502.09,9.455e-05,2]
[348063220,1736290246518,-954.95,9.455e-05,2]
[348063221,1736290246528,-500.0,9.455e-05,2]
[348063222,1736290246538,-512.5,9.455e-05,2]
[348063223,1736290246547,-273.01136336,9.455e-05,2]
[348063224,1736290246574,-837.18863664,9.455e-05,2]
[348063225,1736290246583,-556.46,9.455e-05,2]
[348063226,1736290246593,-689.24,9.455e-05,2]
[348063227,1736290246603,-508.82,9.455e-05,2]
[348063228,1736290246612,-320.5435067,9.455e-05,2]
[348063229,1736290246624,-442.2764933,9.455e-05,2]
[348063230,1736290246633,-147.13368159,9.455e-05,2]
[348063231,1736290246651,-352.86631841,9.455e-05,2]
[348063232,1736290246661,-500.0,9.455e-05,2]
[348063233,1736290246670,-500.0,9.455e-05,2]
[348063234,1736290246680,-1030.35,9.455e-05,2]
[348063235,1736290246689,-1081.71,9.455e-05,2]
[348063236,1736290246699,-500.0,9.455e-05,2]
[348063237,1736290246708,-605.58,9.455e-05,2]
[348063238,1736290246717,-1178.59,9.455e-05,2]
[348063239,1736290246728,-500.0,9.455e-05,2]
[348063240,1736290246737,-500.0,9.455e-05,2]
[348063241,1736290246746,-500.0,9.455e-05,2]
[348063242,1736290246756,-1012.53,9.455e-05,2]
[348063243,1736290246766,-1097.58,9.455e-05,2]
[348063244,1736290246775,-1137.44,9.455e-05,2]
[348063245,1736290246785,-500.0,9.455e-05,2]
[348063246,1736290246794,-702.02,9.455e-05,2]
[348063247,1736290246803,-701.45,9.455e-05,2]
[348063248,1736290246812,-500.0,9.455e-05,2]
[348063249,1736290246822,-500.0,9.455e-05,2]
[348063250,1736290246831,-962.96,9.455e-05,2]
[348063251,1736290246841,-535.53,9.455e-05,2]
[348063252,1736290246850,-923.41,9.455e-05,2]
[348063253,1736290246859,-288.23,9.455e-05,2]
[348063254,1736290246869,-687.69,9.455e-05,2]
[348063255,1736290246878,-500.0,9.455e-05,2]
[348063256,1736290246888,-1097.97,9.455e-05,2]
[348063257,1736290246898,-981.83,9.455e-05,2]
[348063258,1736290246907,-735.48,9.455e-05,2]
[348063259,1736290246917,-1016.11,9.455e-05,2]
[348063260,1736290246926,-1247.62,9.455e-05,2]
[348063261,1736290246935,-701.64,9.455e-05,2]
[348063262,1736290246945,-1347.69,9.455e-05,2]
[348063263,1736290246954,-1306.47,9.455e-05,2]
[348063264,1736290246964,-1214.38,9.455e-05,2]
[348063265,1736290246973,-611.81,9.455e-05,2]
[348063266,1736290246982,-815.66,9.455e-05,2]
[348063267,1736290246992,-526.7,9.455e-05,2]
[348063268,1736290247002,-923.53,9.455e-05,2]
[348063269,1736290247011,-500.0,9.455e-05,2]
[348063270,1736290247021,-716.03,9.455e-05,2]
[348063271,1736290247030,-500.0,9.455e-05,2]
[348063272,1736290247040,-6299.49,9.55e-05,2]
[348063273,1736290247050,-3900.82,9.55e-05,2]
[348063274,1736290247059,-808.66,9.55e-05,2]
[348063275,1736290247069,-825.89,9.55e-05,2]
[348063276,1736290247078,-500.0,9.55e-05,2]
[348063277,1736290247087,-1015.49,9.55e-05,2]
[348063278,1736290247096,-1308.48,9.551e-05,2]
[348063279,1736290247105,-1076.68,9.551e-05,2]
[348063280,1736290247115,-1017.82,9.551e-05,2]
[348063281,1736290247124,-1760.53,9.551e-05,2]
[348063282,1736290247134,-1432.635477,9.551e-05,2]
[348063283,1736290247143,-1608.66159,9.551e-05,2]
[348063284,1736290247152,-1384.66,9.551e-05,2]
[348063285,1736290247161,-1064.58,9.551e-05,2]
[348063286,1736290247171,-2188.18,9.551e-05,2]
[348063287,1736290247180,-3767.12,9.551e-05,2]
[348063288,1736290247189,-2489.67,9.551e-05,2]
[348063289,1736290247199,-1533.2,9.551e-05,2]
[348063290,1736290247208,-500.0,9.551e-05,2]
[348063291,1736290247217,-3308.19338055,9.551e-05,2]
[348063292,1736290247244,-300.495893,9.551e-05,2]
[348063293,1736290247254,-969.38,9.551e-05,2]
[348063294,1736290247690,-500.0,9.181e-05,2]
[348063295,1736290247699,-902.10072645,9.551e-05,2]
[348063296,1736290247709,-1272.31,9.551e-05,2]
[348063297,1736290247718,-954.75,9.551e-05,2]
[348063298,1736290247727,-1203.87,9.551e-05,2]
[348063299,1736290247737,-500.0,9.551e-05,2]
[348063300,1736290247746,-4080.99,9.551e-05,2]
[348063301,1736290247756,-500.0,9.551e-05,2]
[348063302,1736290247765,-1494.79,9.551e-05,2]
[348063303,1736290247775,-1690.35,9.551e-05,2]
[348063304,1736290247784,-1663.51,9.551e-05,2]
[348063305,1736290247793,-2008.34,9.551e-05,2]
[348063306,1736290247802,-1523.36,9.551e-05,2]
[348063307,1736290247812,-1398.98,9.551e-05,2]
[348063308,1736290247820,-609.94,9.551e-05,2]
[348063309,1736290247830,-3256.31,9.551e-05,2]
[348063310,1736290247839,-500.0,9.552e-05,2]
[348063311,1736290247848,-500.0,9.552e-05,2]
[348063312,1736290247858,-500.0,9.552e-05,2]
[348063313,1736290248016,-500.0,9.552e-05,2]
[348063314,1736290248027,-569.03,9.552e-05,2]
[348063315,1736290248036,-500.0,9.552e-05,2]
[348063316,1736290248046,-564.90079383,9.552e-05,2]
[348063317,1736290248056,-619.27,9.552e-05,2]
[348063318,1736290248065,-500.0,9.552e-05,2]
[348063319,1736290248075,-500.0,9.552e-05,2]
[348063320,1736290248084,-351.34397911,9.552e-05,2]
[348063321,1736290248093,-500.0,9.552e-05,2]
[348063322,1736290248104,-500.0,9.552e-05,2]
[348063323,1736290248113,-534.48,9.552e-05,2]
[348063324,1736290248123,-500.0,9.552e-05,2]
[348063325,1736290248132,-551.42,9.552e-05,2]
[348063326,1736290248142,-500.0,9.552e-05,2]
[348063327,1736290248151,-500.0,9.552e-05,2]
[348063328,1736290248161,-500.0,9.552e-05,2]
[348063329,1736290248170,-500.0,9.552e-05,2]
[348063330,1736290248180,-500.0,9.552e-05,2]
[348063331,1736290248191,-673.43,9.552e-05,2]
[348063332,1736290248200,-500.0,9.552e-05,2]
[348063333,1736290248210,-500.0,9.552e-05,2]
[348063334,1736290248219,-500.0,9.552e-05,2]
[348063335,1736290248229,-958.43,9.552e-05,2]
[348063336,1736290248239,-500.0,9.552e-05,2]
[348063337,1736290248249,-543.11,9.552e-05,2]
[348063338,1736290248258,-500.0,9.552e-05,2]
[348063339,1736290248268,-500.0,9.552e-05,2]
[348063340,1736290248277,-689.56,9.552e-05,2]
[348063341,1736290248287,-500.0,9.552e-05,2]
[348063342,1736290248296,-774.32,9.552e-05,2]
[348063343,1736290248306,-500.0,9.552e-05,2]
[348063344,1736290248315,-500.0,9.552e-05,2]
[348063345,1736290248324,-691.31,9.552e-05,2]
[348063346,1736290248334,-500.0,9.552e-05,2]
[348063347,1736290248347,-500.0,9.552e-05,2]
[348063348,1736290248356,-500.0,9.552e-05,2]
[348063349,1736290248366,-500.0,9.552e-05,2]
[348063350,1736290248375,-308.16,9.552e-05,2]
[348063351,1736290248385,-500.0,9.552e-05,2]
[348063352,1736290248394,-772.19,9.552e-05,2]
[348063353,1736290248404,-500.0,9.552e-05,2]
[348063354,1736290248414,-500.0,9.552e-05,2]
[348063355,1736290248424,-500.0,9.552e-05,2]
[348063356,1736290248434,-500.0,9.552e-05,2]
[348063357,1736290248443,-500.0,9.552e-05,2]
[348063358,1736290248452,-500.0,9.552e-05,2]
[348063359,1736290248461,-621.31,9.552e-05,2]
[348063360,1736290248470,-500.0,9.552e-05,2]
[348063361,1736290248481,-528.04,9.552e-05,2]
[348063362,1736290248490,-500.0,9.552e-05,2]
[348063363,1736290248500,-737.57,9.552e-05,2]
[348063364,1736290248509,-500.0,9.552e-05,2]
[348063365,1736290248518,-950.49,9.552e-05,2]
[348063366,1736290248528,-500.0,9.552e-05,2]
[348063367,1736290248537,-500.0,9.552e-05,2]
[348063368,1736290248547,-500.0,9.552e-05,2]
[348063369,1736290248556,-500.0,9.552e-05,2]
[348063370,1736290248566,-599.43,9.552e-05,2]
[348063371,1736290248576,-549.76,9.552e-05,2]
[348063372,1736290248586,-500.0,9.552e-05,2]
[348063373,1736290248596,-919.61,9.552e-05,2]
[348063374,1736290248605,-500.0,9.552e-05,2]
[348063375,1736290248614,-500.0,9.552e-05,2]
[348063376,1736290248623,-500.0,9.552e-05,2]
[348063377,1736290248633,-500.0,9.552e-05,2]
[348063378,1736290248642,-500.0,9.552e-05,2]
[348063379,1736290248652,-500.0,9.552e-05,2]
[348063380,1736290248661,-621.11,9.552e-05,2]
[348063381,1736290248671,-1305.48,9.552e-05,2]
[348063382,1736290248681,-500.0,9.552e-05,2]
[348063383,1736290248691,-554.96,9.552e-05,2]
[348063384,1736290248701,-548.01,9.552e-05,2]
[348063385,1736290248711,-614.86,9.552e-05,2]
[348063386,1736290248721,-734.14,9.552e-05,2]
[348063387,1736290248731,-500.0,9.552e-05,2]
[348063388,1736290248742,-763.53,9.552e-05,2]
[348063389,1736290248751,-500.0,9.552e-05,2]
[348063390,1736290248760,-564.05,9.552e-05,2]
[348063391,1736290248770,-738.71,9.552e-05,2]
[348063392,1736290248779,-500.0,9.552e-05,2]
[348063393,1736290248788,-500.0,9.552e-05,2]
[348063394,1736290248798,-500.0,9.552e-05,2]
[348063395,1736290248807,-698.98,9.552e-05,2]
[348063396,1736290248816,-500.0,9.552e-05,2]
[348063397,1736290248826,-592.18,9.552e-05,2]
[348063398,1736290248835,-500.0,9.552e-05,2]
[348063399,1736290248844,-654.74,9.552e-05,2]
[348063400,1736290248854,-500.0,9.552e-05,2]
[348063401,1736290248863,-547.02,9.552e-05,2]
[348063402,1736290248873,-500.0,9.552e-05,2]
[348063403,1736290248882,-500.0,9.552e-05,2]
[348063404,1736290248892,-500.0,9.552e-05,2]
[348063405,1736290248901,-500.0,9.552e-05,2]
[348063406,1736290248911,-500.0,9.552e-05,2]
[348063407,1736290248920,-500.0,9.552e-05,2]
[348063408,1736290248929,-500.0,9.552e-05,2]
[348063409,1736290248939,-500.0,9.552e-05,2]
[348063410,1736290248948,-671.03,9.552e-05,2]
[348063411,1736290248957,-500.0,9.552e-05,2]
[348063412,1736290248967,-500.0,9.552e-05,2]
[348063413,1736290248976,-500.0,9.552e-05,2]
[348063414,1736290248986,-500.0,9.552e-05,2]
[348063415,1736290248995,-500.0,9.552e-05,2]
[348063416,1736290249005,-500.0,9.552e-05,2]
[348063417,1736290249015,-663.29,9.552e-05,2]
[348063418,1736290249024,-895.43,9.552e-05,2]
[348063419,1736290249035,-500.0,9.552e-05,2]
[348063420,1736290249046,-500.0,9.552e-05,2]
[348063421,1736290249055,-500.0,9.552e-05,2]
[348063422,1736290249065,-500.0,9.552e-05,2]
[348063423,1736290249075,-500.0,9.552e-05,2]
[348063424,1736290249084,-500.0,9.552e-05,2]
[348063425,1736290249093,-508.79,9.552e-05,2]
[348063426,1736290249102,-536.14516394,9.552e-05,2]
[348063427,1736290249111,-653.72,9.552e-05,2]
[348063428,1736290249120,-500.0,9.552e-05,2]
[348063429,1736290249129,-593.7,9.552e-05,2]
[348063430,1736290249139,-500.0,9.552e-05,2]
[348063431,1736290249148,-500.0,9.552e-05,2]
[348063432,1736290249157,-623.39,9.552e-05,2]
[348063433,1736290249167,-1369.89,9.552e-05,2]
[348063434,1736290249176,-500.0,9.552e-05,2]
[348063435,1736290249185,-971.26,9.552e-05,2]
[348063436,1736290249194,-500.0,9.552e-05,2]
[348063437,1736290249204,-500.0,9.552e-05,2]
[348063438,1736290249214,-500.0,9.552e-05,2]
[348063439,1736290249223,-500.0,9.552e-05,2]
[348063440,1736290249233,-1522.1,9.552e-05,2]
[348063441,1736290249243,-1006.5,9.552e-05,2]
[348063442,1736290249253,-500.0,9.552e-05,2]
[348063443,1736290249262,-4588.54,9.552e-05,2]
[348063444,1736290249272,-500.0,9.552e-05,2]
[348063445,1736290249281,-552.23,9.552e-05,2]
[348063446,1736290249290,-500.0,9.552e-05,2]
[348063447,1736290249300,-500.0,9.552e-05,2]
[348063448,1736290249310,-627.12,9.552e-05,2]
[348063449,1736290249319,-3709.51,9.552e-05,2]
[348063450,1736290249330,-500.0,9.552e-05,2]
[348063451,1736290249342,-500.0,9.552e-05,2]
[348063452,1736290249353,-551.69,9.552e-05,2]
[348063453,1736290249362,-564.59,9.552e-05,2]
[348063454,1736290249371,-500.0,9.552e-05,2]
[348063455,1736290249382,-500.0,9.552e-05,2]
[348063456,1736290249391,-500.0,9.552e-05,2]
[348063457,1736290249400,-500.0,9.552e-05,2]
[348063458,1736290249410,-500.0,9.552e-05,2]
[348063459,1736290249419,-768.22,9.552e-05,2]
[348063460,1736290249429,-1607.22,9.552e-05,2]
[348063461,1736290249439,-500.0,9.552e-05,2]
[348063462,1736290249448,-520.1,9.552e-05,2]
[348063463,1736290249457,-1834.97,9.552e-05,2]
[348063464,1736290249467,-500.0,9.552e-05,2]
[348063465,1736290249476,-500.0,9.552e-05,2]
[348063466,1736290249485,-1189.26,9.552e-05,2]
[348063467,1736290249495,-578.09,9.552e-05,2]
[348063468,1736290249504,-537.41,9.552e-05,2]
[348063469,1736290249513,-7145.16,9.589e-05,2]
[348063470,1736290249522,-797.72,9.685e-05,2]
[348063471,1736290249532,-3528.04,9.685e-05,2]
[348063472,1736290249541,-1276.55,9.685e-05,2]
[348063473,1736290249550,-3057.55,9.685e-05,2]
[348063474,1736290249560,-7935.21,9.685e-05,2]
[348063475,1736290249570,-312.40506933,9.685e-05,2]
[348063476,1736290249579,-920.79,9.685e-05,2]
[348063477,1736290249588,-1588.01,9.685e-05,2]
[348063478,1736290249597,-2769.15,9.685e-05,2]
[348063479,1736290249607,-500.0,9.685e-05,2]
[348063480,1736290249616,-5146.02,9.685e-05,2]
[348063481,1736290249626,-1860.59,9.685e-05,2]
[348063482,1736290249635,-500.0,9.685e-05,2]
[348063483,1736290249645,-2177.16,9.685e-05,2]
[348063484,1736290249655,-1293.55,9.685e-05,2]
[348063485,1736290249664,-4623.61,9.685e-05,2]
[348063486,1736290249674,-2142.04,9.685e-05,2]
[348063487,1736290249683,-1965.94,9.685e-05,2]
[348063488,1736290249693,-2185.97,9.685e-05,2]
[348063489,1736290249703,-946.04,9.685e-05,2]
[348063490,1736290249712,-3004.29,9.685e-05,2]
[348063491,1736290249722,-500.0,9.685e-05,2]
[348063492,1736290249732,-500.0,9.685e-05,2]
[348063493,1736290249742,-1147.28,9.685e-05,2]
[348063494,1736290249752,-1015.36,9.685e-05,2]
[348063495,1736290249761,-500.0,9.685e-05,2]
[348063496,1736290249771,-1034.35,9.685e-05,2]
[348063497,1736290249780,-564.54,9.685e-05,2]
[348063498,1736290249789,-2088.64,9.685e-05,2]
[348063499,1736290249799,-500.0,9.728e-05,2]
[348063500,1736290249809,-500.0,9.728e-05,2]
[348063501,1736290249818,-500.0,9.728e-05,2]
[348063502,1736290249827,-505.84,9.728e-05,2]
[348063503,1736290249837,-500.0,9.728e-05,2]
[348063504,1736290249846,-500.0,9.728e-05,2]
[348063505,1736290249855,-542.87,9.728e-05,2]
[348063506,1736290249866,-500.0,9.728e-05,2]
[348063507,1736290249875,-500.0,9.728e-05,2]
[348063508,1736290249884,-500.0,9.728e-05,2]
[348063509,1736290249894,-500.0,9.728e-05,2]
[348063510,1736290249903,-500.0,9.728e-05,2]
[348063511,1736290249912,-538.95,9.728e-05,2]
[348063512,1736290249921,-500.0,9.728e-05,2]
[348063513,1736290249930,-500.0,9.728e-05,2]
[348063514,1736290249940,-500.0,9.728e-05,2]
[348063515,1736290249949,-500.0,9.728e-05,2]
[348063516,1736290249959,-500.0,9.728e-05,2]
[348063517,1736290249968,-500.0,9.728e-05,2]
[348063518,1736290249978,-636.56,9.728e-05,2]
[348063519,1736290249988,-500.0,9.728e-05,2]
[348063520,1736290249997,-627.49,9.728e-05,2]
[348063521,1736290250007,-470.2,9.728e-05,2]
[348063522,1736290250017,-717.74,9.728e-05,2]
[348063523,1736290250026,-500.0,9.728e-05,2]
[348063524,1736290250036,-500.0,9.728e-05,2]
[348063525,1736290250045,-500.0,9.728e-05,2]
[348063526,1736290250055,-455.93,9.728e-05,2]
[348063527,1736290250064,-500.0,9.728e-05,2]
[348063528,1736290250074,-500.0,9.728e-05,2]
[348063529,1736290250083,-500.0,9.729e-05,2]
[348063530,1736290250093,-918.23,9.729e-05,2]
[348063531,1736290250102,-730.29,9.729e-05,2]
[348063532,1736290250111,-500.0,9.729e-05,2]
[348063533,1736290250256,-500.0,9.729e-05,2]
[348063534,1736290250266,-500.0,9.729e-05,2]
[348063535,1736290250277,-1236.68,9.729e-05,2]
[348063536,1736290250286,-889.86,9.729e-05,2]
[348063537,1736290250296,-1169.42,9.729e-05,2]
[348063538,1736290250306,-638.18,9.729e-05,2]
[348063539,1736290250316,-526.57,9.729e-05,2]
[348063540,1736290250325,-621.31,9.729e-05,2]
[348063541,1736290250334,-500.0,9.729e-05,2]
[348063542,1736290250349,-527.28,9.729e-05,2]
[348063543,1736290250358,-953.02,9.729e-05,2]
[348063544,1736290250368,-500.0,9.729e-05,2]
[348063545,1736290250378,-500.44,9.729e-05,2]
[348063546,1736290250389,-880.01,9.729e-05,2]
[348063547,1736290250398,-500.0,9.729e-05,2]
[348063548,1736290250408,-500.0,9.729e-05,2]
[348063549,1736290250417,-500.0,9.729e-05,2]
[348063550,1736290250426,-989.14,9.729e-05,2]
[348063551,1736290250436,-619.42,9.729e-05,2]
[348063552,1736290250446,-1041.11,9.729e-05,2]
[348063553,1736290250455,-500.0,9.729e-05,2]
[348063554,1736290250464,-500.0,9.729e-05,2]
[348063555,1736290250474,-1191.41,9.729e-05,2]
[348063556,1736290250484,-586.75,9.729e-05,2]
[348063557,1736290250493,-1060.23,9.729e-05,2]
[348063558,1736290250503,-500.0,9.729e-05,2]
[348063559,1736290250512,-500.0,9.729e-05,2]
[348063560,1736290250522,-660.8,9.729e-05,2]
[348063561,1736290250533,-502.09,9.729e-05,2]
[348063562,1736290250544,-954.95,9.729e-05,2]
[348063563,1736290250553,-500.0,9.729e-05,2]
[348063564,1736290250563,-512.5,9.729e-05,2]
[348063565,1736290250572,-1110.2,9.729e-05,2]
[348063566,1736290250583,-556.46,9.729e-05,2]
[348063567,1736290250602,-689.24,9.729e-05,2]
[348063568,1736290250613,-508.82,9.729e-05,2]
[348063569,1736290250623,-762.82,9.729e-05,2]
[348063570,1736290250634,-500.0,9.729e-05,2]
[348063571,1736290250644,-500.0,9.729e-05,2]
[348063572,1736290250654,-1030.35,9.729e-05,2]